fUSD/lending_fUSD_20240528
["ID","MTS","AMOUNT","RATE_DAILY","PERIOD"]
[328103172,1716863448072,-520.979302,0.00030136,6]
[328103174,1716863448080,-505.88929498,0.00030136,6]
[328103176,1716863448091,-240.35017069,0.00030136,6]
[328103178,1716863448100,-535.68531201,0.00030136,6]
[328103180,1716863448110,-500.0,0.00030136,6]
[328103182,1716863448119,-500.0,0.00030136,6]
[328103184,1716863448128,-500.0,0.00030136,6]
[328103186,1716863448137,-489.39315106,0.00030136,6]
[328103188,1716863448148,-516.46975334,0.00030136,6]
[328103189,1716863448159,-500.0,0.00030136,6]
[328103192,1716863448169,-500.0,0.00030136,6]
[328103194,1716863448178,-511.53856099,0.00030136,6]
[328103195,1716863448187,-238.36771615,0.00030136,6]
[328103197,1716863448197,-524.65100985,0.00030136,6]
[328103200,1716863448206,-500.0,0.00030136,6]
[328103202,1716863448216,-517.46765793,0.00030136,6]
[328103204,1716863448225,-500.0,0.00030136,6]
[328103206,1716863448234,-492.13784366,0.00030136,6]
[328103208,1716863448243,-516.93976231,0.00030136,6]
[328103210,1716863448252,-500.0,0.00030136,6]
[328103212,1716863448262,-500.0,0.00030136,6]
[328103214,1716863448271,-507.14716438,0.00030136,6]
[328103216,1716863448280,-292.29091534,0.00030136,6]
[328103218,1716863448289,-500.0,0.00030136,6]
[328103220,1716863448298,-500.0,0.00030136,6]
[328103222,1716863448307,-500.0,0.00030136,6]
[328103224,1716863448316,-500.0,0.00030136,6]
[328103226,1716863448325,-500.0,0.00030136,6]
[328103228,1716863448334,-500.0,0.00030136,6]
[328103230,1716863448345,-181.99334729,0.00030136,6]
[328103232,1716863448354,-513.45185537,0.00030136,6]
[328103234,1716863448363,-500.0,0.00030136,6]
[328103236,1716863448372,-509.01680966,0.00030136,6]
[328103238,1716863448382,-500.0,0.00030136,6]
[328103240,1716863448391,-500.0,0.00030136,6]
[328103242,1716863448400,-500.0,0.00030136,6]
[328103244,1716863448409,-500.0,0.00030136,6]
[328103246,1716863448418,-500.0,0.00030136,6]
[328103248,1716863448427,-243.43015558,0.00030136,6]
[328103250,1716863448436,-544.4752999,0.00030136,6]
[328103252,1716863448446,-500.0,0.00030136,6]
[328103254,1716863448455,-500.0,0.00030136,6]
[328103256,1716863448464,-500.0,0.00030136,6]
[328103258,1716863448474,-500.0,0.00030136,6]
[328103260,1716863448483,-500.0,0.00030136,6]
[328103262,1716863448492,-500.0,0.00030136,6]
[328103264,1716863448501,-510.99417587,0.00030136,6]
[328103266,1716863448510,-500.0,0.00030136,6]
[328103268,1716863448519,-500.0,0.00030136,6]
[328103270,1716863448529,-509.20357717,0.00030136,6]
[328103272,1716863448538,-500.0,0.00030136,6]
[328103274,1716863448547,-500.0,0.00030136,6]
[328103276,1716863448556,-609.54170486,0.00030136,6]
[328103278,1716863448565,-500.0,0.00030136,6]
[328103280,1716863448574,-500.0,0.00030136,6]
[328103282,1716863448583,-500.0,0.00030136,6]
[328103284,1716863448593,-521.9526015,0.00030136,6]
[328103286,1716863448603,-521.48363164,0.00030136,6]
[328103288,1716863448612,-524.40034604,0.00030136,6]
[328103290,1716863448622,-500.0,0.00030136,6]
[328103292,1716863448631,-500.0,0.00030136,6]
[328103294,1716863448641,-500.0,0.00030136,6]
[328103296,1716863448650,-500.0,0.00030136,6]
[328103298,1716863448659,-454.77232588,0.00030136,6]
[328103300,1716863448668,-500.0,0.00030136,6]
[328103302,1716863448678,-510.47543873,0.00030136,6]
[328103304,1716863448687,-516.36349616,0.00030136,6]
[328103306,1716863448695,-500.0,0.00030136,6]
[328103308,1716863448705,-500.0,0.00030136,6]
[328103310,1716863448714,-500.0,0.00030136,6]
[328103312,1716863448723,-500.0,0.00030136,6]
[328103314,1716863448732,-258.53879082,0.00030136,6]
[328103316,1716863448742,-500.0,0.00030136,6]
[328103318,1716863448751,-500.0,0.00030136,6]
[328103320,1716863448760,-500.0,0.00030136,6]
[328103322,1716863448769,-522.83206738,0.00030136,6]
[328103324,1716863448778,-260.33807391,0.00030136,6]
[328103326,1716863448787,-500.0,0.00030136,6]
[328103328,1716863448797,-500.0,0.00030136,6]
[328103330,1716863448807,-500.0,0.00030136,6]
[328103332,1716863448816,-500.0,0.00030136,6]
[328103334,1716863448826,-500.0,0.00030136,6]
[328103336,1716863448835,-514.96823689,0.00030136,6]
[328103338,1716863448846,-364.87700767,0.00030136,6]
[328103340,1716863448855,-520.81421639,0.00030136,6]
[328103342,1716863448864,-500.0,0.00030136,6]
[328103344,1716863448874,-515.22133549,0.00030136,6]
[328103346,1716863448883,-500.0,0.00030136,6]
[328103348,1716863448893,-500.0,0.00030136,2]
[328103350,1716863448903,-521.04910668,0.00030136,6]
[328103352,1716863448912,-500.0,0.00030136,2]
[328103354,1716863448922,-500.0,0.00030136,6]
[328103356,1716863448931,-501.82027852,0.00030136,2]
[328103358,1716863448940,-504.7974258,0.00030136,6]
[328103360,1716863448950,-500.0,0.00030136,6]
[328103361,1716863448959,-519.07183793,0.00030136,6]
[328103362,1716863448969,-500.0,0.00030136,6]
[328103363,1716863449023,-511.03063283,0.00030136,6]
[328103364,1716863449033,-500.0,0.00030136,6]
[328103365,1716863449042,-500.0,0.00030136,6]
[328103366,1716863449052,-602.30935411,0.00030136,6]
[328103367,1716863449064,-507.65902364,0.00030136,6]
[328103368,1716863449073,-500.0,0.00030136,6]
[328103369,1716863449083,-519.03617614,0.00030136,6]
[328103370,1716863449095,-500.0,0.00030136,6]
[328103371,1716863449104,-500.0,0.00030136,6]
[328103372,1716863449113,-520.48395357,0.00030136,6]
[328103373,1716863449123,-500.0,0.00030136,6]
[328103374,1716863449132,-500.0,0.00030136,6]
[328103375,1716863449141,-500.0,0.00030136,6]
[328103376,1716863449150,-500.0,0.00030136,6]
[328103377,1716863449159,-500.0,0.00030136,6]
[328103378,1716863449170,-500.0,0.00030136,6]
[328103379,1716863449179,-516.36609666,0.00030136,6]
[328103380,1716863449188,-500.0,0.00030136,6]
[328103381,1716863449198,-347.72808511,0.00030136,6]
[328103382,1716863449207,-500.0,0.00030136,6]
[328103383,1716863449216,-500.0,0.00030136,6]
[328103384,1716863449225,-500.0,0.00030136,2]
[328103385,1716863449234,-500.0,0.00030136,2]
[328103386,1716863449243,-500.0,0.00030136,6]
[328103387,1716863449252,-516.71412369,0.00030136,6]
[328103388,1716863449261,-501.16834712,0.00030136,2]
[328103389,1716863449271,-500.0,0.00030136,6]
[328103390,1716863449282,-500.0,0.00030136,6]
[328103391,1716863449291,-150.0,0.00030136,6]
[328103392,1716863449300,-500.0,0.00030136,6]
[328103393,1716863449310,-152.73864231,0.00030136,6]
[328103394,1716863449319,-500.0,0.00030136,6]
[328103395,1716863449328,-500.0,0.00030136,6]
[328103396,1716863449338,-500.0,0.00030136,6]
[328103397,1716863449348,-500.0,0.00030136,6]
[328103398,1716863449358,-500.0,0.00030136,6]
[328103399,1716863449367,-500.0,0.00030136,6]
[328103400,1716863449377,-500.0,0.00030136,6]
[328103401,1716863449386,-500.0,0.00030136,6]
[328103402,1716863449396,-500.0,0.00030136,6]
[328103403,1716863449405,-500.0,0.00030136,6]
[328103404,1716863449414,-500.0,0.00030136,6]
[328103405,1716863449424,-500.0,0.00030136,6]
[328103406,1716863449434,-500.0,0.00030136,6]
[328103407,1716863449443,-500.0,0.00030136,6]
[328103408,1716863449453,-500.0,0.00030136,6]
[328103409,1716863449463,-500.0,0.00030136,6]
[328103410,1716863449472,-344.67509419,0.00030136,6]
[328103411,1716863449482,-522.58682796,0.00030136,6]
[328103412,1716863449491,-500.0,0.00030136,6]
[328103413,1716863449501,-500.0,0.00030136,6]
[328103414,1716863449510,-500.0,0.00030136,6]
[328103415,1716863449521,-535.32231676,0.00030136,6]
[328103416,1716863449531,-500.0,0.00030136,6]
[328103417,1716863449541,-500.0,0.00030136,6]
[328103418,1716863449551,-500.0,0.00030136,6]
[328103419,1716863449562,-296.35017247,0.00030136,6]
[328103420,1716863449571,-284.04577454,0.00030136,6]
[328103421,1716863449580,-283.14648443,0.00030136,6]
[328103422,1716863449592,-500.0,0.00030136,6]
[328103423,1716863449601,-500.0,0.00030136,6]
[328103424,1716863449611,-500.0,0.00030136,6]
[328103425,1716863449620,-500.0,0.00030136,6]
[328103426,1716863449629,-500.0,0.00030136,6]
[328103427,1716863449638,-500.0,0.00030136,6]
[328103428,1716863449648,-571.19259,0.00030136,6]
[328103429,1716863449657,-500.0,0.00030136,6]
[328103430,1716863449667,-500.0,0.00030136,6]
[328103431,1716863449676,-500.0,0.00030136,6]
[328103432,1716863449686,-517.80684359,0.00030136,6]
[328103433,1716863449696,-609.76,0.00030136,6]
[328103434,1716863449705,-517.93908471,0.00030136,6]
[328103435,1716863449715,-564.54113253,0.00030136,6]
[328103436,1716863449724,-306.26377425,0.00030136,6]
[328103437,1716863449736,-511.12519684,0.00030136,6]
[328103438,1716863449746,-500.0,0.00030136,6]
[328103439,1716863449755,-487.02580616,0.00030136,6]
[328103440,1716863449764,-500.0,0.00030136,6]
[328103441,1716863449774,-500.0,0.00030136,6]
[328103442,1716863449783,-516.32928288,0.00030136,6]
[328103443,1716863449793,-163.48527381,0.00030136,6]
[328103444,1716863449802,-1000.0,0.00030136,6]
[328103445,1716863449811,-1000.0,0.00030136,6]
[328103446,1716863449821,-1066.33112406,0.00030136,6]
[328103447,1716863449830,-504.66932181,0.00030136,6]
[328103448,1716863449841,-516.96561112,0.00030136,6]
[328103449,1716863449851,-500.0,0.00030136,6]
[328103450,1716863449860,-500.0,0.00030136,6]
[328103451,1716863449870,-500.0,0.00030136,6]
[328103452,1716863449879,-500.0,0.00030136,6]
[328103453,1716863449889,-500.0,0.00030136,6]
[328103454,1716863449898,-509.26150525,0.00030136,6]
[328103455,1716863449907,-500.0,0.00030136,6]
[328103456,1716863449917,-509.50499679,0.00030136,6]
[328103457,1716863449926,-629.88774093,0.00030136,6]
[328103458,1716863449935,-515.60514062,0.00030136,6]
[328103459,1716863449945,-511.59732887,0.00030136,6]
[328103460,1716863449954,-508.3282302,0.00030136,6]
[328103461,1716863449963,-508.3236071,0.00030136,6]
[328103462,1716863449974,-500.0,0.00030136,6]
[328103463,1716863449987,-539.68262589,0.00030136,6]
[328103464,1716863449996,-300.0,0.00030136,2]
[328103465,1716863450005,-500.60157815,0.00030136,6]
[328103466,1716863450015,-200.60367144,0.00030136,6]
[328103467,1716863450026,-500.0,0.00030136,6]
[328103468,1716863450036,-220.4909725,0.00030136,6]
[328103469,1716863450045,-500.0,0.00030136,6]
[328103470,1716863450054,-347.75331623,0.00030136,6]
[328103471,1716863450064,-500.0,0.00030136,2]
[328103472,1716863450073,-500.0,0.00030136,2]
[328103473,1716863450082,-502.35218357,0.00030136,2]
[328103474,1716863450092,-500.0,0.00030136,6]
[328103475,1716863450102,-500.0,0.00030136,6]
[328103476,1716863450112,-500.0,0.00030136,6]
[328103477,1716863450122,-500.0,0.00030136,6]
[328103478,1716863450131,-500.0,0.00030136,6]
[328103479,1716863450140,-588.85696504,0.00030136,6]
[328103480,1716863450151,-500.0,0.00030136,6]
[328103481,1716863450160,-500.0,0.00030136,6]
[328103482,1716863450169,-181.69946886,0.00030136,6]
[328103483,1716863450178,-500.0,0.00030136,2]
[328103484,1716863450187,-500.0,0.00030136,2]
[328103485,1716863450196,-500.0,0.00030136,2]
[328103486,1716863450205,-515.22974011,0.00030136,2]
[328103487,1716863450214,-506.92370675,0.00030136,6]
[328103488,1716863450223,-304.20512232,0.00030136,2]
[328103489,1716863450232,-500.0,0.00030136,2]
[328103490,1716863450241,-500.0,0.00030136,2]
[328103491,1716863450250,-501.54578237,0.00030136,2]
[328103492,1716863450260,-500.0,0.00030136,6]
[328103493,1716863450269,-500.0,0.00030136,6]
[328103494,1716863450278,-500.0,0.00030136,6]
[328103495,1716863450287,-500.0,0.00030136,6]
[328103496,1716863450296,-516.45266426,0.00030136,6]
[328103497,1716863450306,-500.0,0.00030136,6]
[328103498,1716863450315,-500.0,0.00030136,6]
[328103499,1716863450324,-500.0,0.00030136,6]
[328103500,1716863450334,-500.0,0.00030136,6]
[328103501,1716863450344,-500.0,0.00030136,6]
[328103502,1716863450354,-371.34109788,0.00030136,6]
[328103503,1716863450363,-361.98928981,0.00030136,6]
[328103504,1716863450372,-500.0,0.00030136,6]
[328103505,1716863450381,-500.0,0.00030136,6]
[328103506,1716863450391,-500.0,0.00030136,6]
[328103507,1716863450400,-500.0,0.00030136,6]
[328103508,1716863450409,-500.0,0.00030136,6]
[328103509,1716863450418,-500.0,0.00030136,6]
[328103510,1716863450428,-275.69260074,0.00030136,6]
[328103511,1716863450437,-20000.0,0.00030136,2]
[328103512,1716863450446,-20000.0,0.00030136,2]
[328103513,1716863450456,-20047.6806259,0.00030136,2]
[328103514,1716863450466,-509.7219422,0.00030136,6]
[328103515,1716863450475,-321.78586593,0.00030136,6]
[328103516,1716863450484,-870.86,0.00030136,6]
[328103517,1716863450493,-870.86,0.00030136,6]
[328103518,1716863450503,-870.86,0.00030136,6]
[328103519,1716863450512,-500.0,0.00030136,6]
[328103520,1716863450521,-870.86,0.00030136,6]
[328103521,1716863450531,-500.0,0.00030136,6]
[328103522,1716863450540,-406.17955947,0.00030136,6]
[328103523,1716863450549,-500.0,0.00030136,6]
[328103524,1716863450559,-870.86,0.00030136,6]
[328103525,1716863450568,-870.86,0.00030136,6]
[328103526,1716863450577,-252.21383868,0.00030136,6]
[328103527,1716863450587,-870.86,0.00030136,6]
[328103528,1716863450602,-870.86,0.00030136,6]
[328103529,1716863450611,-870.86,0.00030136,6]
[328103530,1716863450622,-504.34778528,0.00030136,6]
[328103531,1716863450632,-870.86,0.00030136,6]
[328103532,1716863450641,-870.86,0.00030136,6]
[328103533,1716863450652,-870.86,0.00030136,6]
[328103534,1716863450662,-870.86,0.00030136,6]
[328103535,1716863450671,-870.86,0.00030136,6]
[328103536,1716863450681,-381.34716776,0.00030136,6]
[328103537,1716863450690,-870.86,0.00030136,6]
[328103538,1716863450700,-870.86,0.00030136,6]
[328103539,1716863450711,-870.86,0.00030136,6]
[328103540,1716863450721,-870.86,0.00030136,6]
[328103541,1716863450731,-870.86,0.00030136,6]
[328103542,1716863450740,-870.86,0.00030136,6]
[328103543,1716863450749,-870.86,0.00030136,6]
[328103544,1716863450759,-870.86,0.00030136,6]
[328103545,1716863450768,-870.86,0.00030136,6]
[328103546,1716863450778,-870.94595852,0.00030136,6]
[328103547,1716863450787,-500.0,0.00030136,6]
[328103548,1716863450797,-510.20773727,0.00030136,6]
[328103549,1716863450808,-500.0,0.00030136,6]
[328103550,1716863450817,-500.0,0.00030136,6]
[328103551,1716863450827,-500.0,0.00030136,6]
[328103552,1716863450836,-529.6735918,0.00030136,6]
[328103553,1716863450849,-500.0,0.00030136,6]
[328103554,1716863450858,-500.0,0.00030136,6]
[328103555,1716863450868,-500.0,0.00030136,6]
[328103556,1716863450877,-500.0,0.00030136,6]
[328103557,1716863450886,-291.91039646,0.00030136,6]
[328103558,1716863450896,-411.00525976,0.00030136,6]
[328103559,1716863450905,-530.28172733,0.00030136,6]
[328103560,1716863450915,-647.83314057,0.00030136,6]
[328103561,1716863450924,-590.49998119,0.00030136,6]
[328103562,1716863450933,-500.0,0.00030136,6]
[328103563,1716863450943,-549.23363361,0.00030136,6]
[328103564,1716863450953,-500.0,0.00030136,6]
[328103565,1716863450962,-509.60197106,0.00030136,6]
[328103566,1716863450972,-536.75222041,0.00030136,6]
[328103567,1716863450984,-500.0,0.00030136,6]
[328103568,1716863450994,-500.0,0.00030136,6]
[328103569,1716863451004,-500.0,0.00030136,6]
[328103570,1716863451013,-500.0,0.00030136,6]
[328103571,1716863451023,-228.61633672,0.00030136,6]
[328103572,1716863451032,-525.03822695,0.00030136,6]
[328103573,1716863451042,-539.77435119,0.00030136,6]
[328103574,1716863451051,-500.0,0.00030136,6]
[328103575,1716863451063,-500.0,0.00030136,6]
[328103576,1716863451074,-500.0,0.00030136,6]
[328103577,1716863451083,-500.0,0.00030136,6]
[328103578,1716863451095,-500.0,0.00030136,6]
[328103579,1716863451104,-500.0,0.00030136,6]
[328103580,1716863451114,-500.0,0.00030136,6]
[328103581,1716863451123,-500.0,0.00030136,6]
[328103582,1716863451133,-472.98766646,0.00030136,6]
[328103583,1716863451143,-500.0,0.00030136,6]
[328103584,1716863451153,-500.0,0.00030136,6]
[328103585,1716863451163,-500.0,0.00030136,6]
[328103586,1716863451172,-534.0660915,0.00030136,6]
[328103587,1716863451182,-500.0,0.00030136,6]
[328103588,1716863451192,-166.06215226,0.00030136,6]
[328103589,1716863451202,-500.0,0.00030136,6]
[328103590,1716863451211,-500.0,0.00030136,6]
[328103591,1716863451220,-396.21304762,0.00030136,6]
[328103592,1716863451230,-469.77512802,0.00030136,6]
[328103593,1716863451239,-500.0,0.00030136,6]
[328103594,1716863451249,-200.3104449,0.00030136,6]
[328103595,1716863451259,-500.0,0.00030136,6]
[328103596,1716863451268,-534.18825041,0.00030136,6]
[328103597,1716863451278,-561.59,0.00030136,6]
[328103598,1716863451287,-500.0,0.00030136,6]
[328103599,1716863451297,-500.0,0.00030136,6]
[328103600,1716863451306,-500.0,0.00030136,6]
[328103601,1716863451316,-500.0,0.00030136,6]
[328103602,1716863451326,-294.60505566,0.00030136,6]
[328103603,1716863451336,-500.0,0.00030136,6]
[328103604,1716863451347,-500.0,0.00030136,6]
[328103605,1716863451357,-239.66532476,0.00030136,6]
[328103606,1716863451367,-500.0,0.00030136,6]
[328103607,1716863451377,-500.0,0.00030136,6]
[328103608,1716863451387,-500.0,0.00030136,6]
[328103609,1716863451396,-500.0,0.00030136,6]
[328103610,1716863451406,-500.0,0.00030136,6]
[328103611,1716863451415,-500.0,0.00030136,6]
[328103612,1716863451426,-286.26899368,0.00030136,6]
[328103613,1716863451435,-518.56115754,0.00030136,6]
[328103614,1716863451445,-515.25367711,0.00030136,6]
[328103615,1716863451455,-500.0,0.00030136,6]
[328103616,1716863451465,-546.2917281,0.00030136,6]
[328103617,1716863451475,-500.0,0.00030136,6]
[328103618,1716863451485,-383.29990092,0.00030136,6]
[328103619,1716863451494,-515.14876148,0.00030136,6]
[328103620,1716863451504,-500.0,0.00030136,6]
[328103621,1716863451514,-500.0,0.00030136,6]
[328103622,1716863451523,-500.0,0.00030136,6]
[328103623,1716863451533,-500.0,0.00030136,6]
[328103624,1716863451543,-500.0,0.00030136,6]
[328103625,1716863451552,-500.0,0.00030136,6]
[328103626,1716863451562,-161.35435224,0.00030136,6]
[328103627,1716863451572,-513.91848599,0.00030136,6]
[328103628,1716863451581,-515.24758967,0.00030136,6]
[328103629,1716863451593,-556.72355907,0.00030136,6]
[328103630,1716863451603,-500.0,0.00030136,6]
[328103631,1716863451613,-508.53842986,0.00030136,6]
[328103632,1716863451623,-529.467573,0.00030136,6]
[328103633,1716863451632,-500.0,0.00030136,6]
[328103634,1716863451642,-245.74763438,0.00030136,6]
[328103635,1716863451652,-500.0,0.00030136,6]
[328103636,1716863451662,-500.0,0.00030136,6]
[328103637,1716863451672,-500.0,0.00030136,6]
[328103638,1716863451682,-500.0,0.00030136,6]
[328103639,1716863451692,-606.71428562,0.00030136,6]
[328103640,1716863451702,-500.0,0.00030136,6]
[328103641,1716863451711,-500.0,0.00030136,6]
[328103642,1716863451721,-500.0,0.00030136,6]
[328103643,1716863451731,-500.0,0.00030136,6]
[328103644,1716863451741,-500.0,0.00030136,6]
[328103645,1716863451751,-288.52840032,0.00030136,6]
[328103646,1716863451761,-500.0,0.00030136,6]
[328103647,1716863451770,-530.17594003,0.00030136,6]
[328103648,1716863451780,-500.0,0.00030136,6]
[328103649,1716863451790,-500.0,0.00030136,6]
[328103650,1716863451799,-500.0,0.00030136,6]
[328103651,1716863451809,-152.95556884,0.00030136,6]
[328103652,1716863451819,-500.0,0.00030136,6]
[328103653,1716863451828,-500.0,0.00030136,6]
[328103654,1716863451838,-579.99750244,0.00030136,6]
[328103655,1716863451849,-330.26446507,0.00030136,6]
[328103656,1716863451859,-500.0,0.00030136,6]
[328103657,1716863451869,-389.62418948,0.00030136,6]
[328103658,1716863451879,-278.15672012,0.00030136,6]
[328103659,1716863451888,-517.9097635,0.00030136,6]
[328103660,1716863451898,-505.20706783,0.00030136,6]
[328103661,1716863451907,-500.0,0.00030136,6]
[328103662,1716863451917,-510.97213246,0.00030136,6]
[328103663,1716863451927,-500.0,0.00030136,6]
[328103664,1716863451936,-527.35550788,0.00030136,6]
[328103665,1716863451946,-500.0,0.00030136,6]
[328103666,1716863451956,-478.96427252,0.00030136,6]
[328103667,1716863451965,-500.0,0.00030136,6]
[328103668,1716863451977,-518.06264532,0.00030136,6]
[328103669,1716863451988,-524.41236361,0.00030136,6]
[328103670,1716863451998,-500.0,0.00030136,6]
[328103671,1716863452008,-541.08078245,0.00030136,6]
[328103672,1716863452019,-170.04981863,0.00030136,6]
[328103673,1716863452029,-500.0,0.00030136,6]
[328103674,1716863452038,-426.28673411,0.00030136,6]
[328103675,1716863452048,-500.0,0.00030136,6]
[328103676,1716863452059,-500.0,0.00030136,6]
[328103677,1716863452070,-534.30876028,0.00030136,6]
[328103678,1716863452080,-513.86609887,0.00030136,6]
[328103679,1716863452089,-504.62484321,0.00030136,6]
[328103680,1716863452100,-500.0,0.00030136,6]
[328103681,1716863452110,-621.49372001,0.00030136,6]
[328103682,1716863452120,-541.76768603,0.00030136,6]
[328103683,1716863452131,-500.0,0.00030136,6]
[328103684,1716863452140,-500.0,0.00030136,6]
[328103685,1716863452151,-500.0,0.00030136,6]
[328103686,1716863452160,-285.94690924,0.00030136,6]
[328103687,1716863452170,-500.0,0.00030136,6]
[328103688,1716863452180,-262.45475118,0.00030136,6]
[328103689,1716863452190,-521.35476208,0.00030136,6]
[328103690,1716863452200,-500.0,0.00030136,6]
[328103691,1716863452210,-522.69056488,0.00030136,6]
[328103692,1716863452220,-500.0,0.00030136,6]
[328103693,1716863452230,-500.0,0.00030136,6]
[328103694,1716863452240,-500.0,0.00030136,6]
[328103695,1716863452249,-450.89688275,0.00030136,6]
[328103696,1716863452259,-304.32,0.00030136,6]
[328103697,1716863452269,-440.74302088,0.00030136,6]
[328103698,1716863452279,-517.0447504,0.00030136,6]
[328103699,1716863452289,-500.0,0.00030136,6]
[328103700,1716863452299,-508.95016077,0.00030136,6]
[328103701,1716863452308,-523.86263581,0.00030136,6]
[328103702,1716863452318,-500.0,0.00030136,6]
[328103703,1716863452328,-500.0,0.00030136,6]
[328103704,1716863452338,-500.0,0.00030136,6]
[328103705,1716863452350,-192.70697381,0.00030136,6]
[328103706,1716863452359,-515.97087659,0.00030136,6]
[328103707,1716863452368,-624.62352857,0.00030136,6]
[328103708,1716863452378,-500.0,0.00030136,6]
[328103709,1716863452387,-584.98236324,0.00030136,6]
[328103710,1716863452397,-517.31293499,0.00030136,6]
[328103711,1716863452407,-500.0,0.00030136,6]
[328103712,1716863452416,-533.15733971,0.00030136,6]
[328103713,1716863452425,-514.04077202,0.00030136,6]
[328103714,1716863452435,-510.29673407,0.00030136,6]
[328103715,1716863452445,-500.0,0.00030136,6]
[328103716,1716863452454,-500.0,0.00030136,6]
[328103717,1716863452464,-182.9154241,0.00030136,6]
[328103718,1716863452473,-500.0,0.00030136,6]
[328103719,1716863452483,-500.0,0.00030136,6]
[328103720,1716863452493,-500.0,0.00030136,6]
[328103721,1716863452502,-500.0,0.00030136,6]
[328103722,1716863452512,-458.04428836,0.00030136,6]
[328103723,1716863452522,-500.0,0.00030136,6]
[328103724,1716863452531,-349.55160314,0.00030136,6]
[328103725,1716863452541,-500.0,0.00030136,6]
[328103726,1716863452550,-500.0,0.00030136,6]
[328103727,1716863452560,-500.0,0.00030136,6]
[328103728,1716863452569,-500.0,0.00030136,6]
[328103729,1716863452580,-500.0,0.00030136,6]
[328103730,1716863452589,-500.0,0.00030136,6]
[328103731,1716863452600,-500.0,0.00030136,6]
[328103732,1716863452610,-500.0,0.00030136,6]
[328103733,1716863452619,-294.16347836,0.00030136,6]
[328103734,1716863452629,-500.0,0.00030136,6]
[328103735,1716863452640,-500.0,0.00030136,6]
[328103736,1716863452649,-500.0,0.00030136,6]
[328103737,1716863452659,-530.83054441,0.00030136,6]
[328103738,1716863452669,-500.0,0.00030136,6]
[328103739,1716863452679,-524.67992504,0.00030136,6]
[328103740,1716863452689,-500.0,0.00030136,6]
[328103741,1716863452698,-500.0,0.00030136,6]
[328103742,1716863452708,-177.84027403,0.00030136,6]
[328103743,1716863452718,-500.0,0.00030136,6]
[328103744,1716863452727,-518.29815321,0.00030136,6]
[328103745,1716863452737,-555.29165656,0.00030136,6]
[328103746,1716863452747,-486.32986973,0.00030136,6]
[328103747,1716863452757,-500.0,0.00030136,6]
[328103748,1716863452766,-546.9457707,0.00030136,6]
[328103749,1716863452776,-500.0,0.00030136,6]
[328103750,1716863452786,-500.0,0.00030136,6]
[328103751,1716863452795,-433.48516126,0.00030136,6]
[328103752,1716863452805,-500.0,0.00030136,6]
[328103753,1716863452814,-500.0,0.00030136,6]
[328103754,1716863452824,-500.0,0.00030136,6]
[328103755,1716863452834,-500.0,0.00030136,6]
[328103756,1716863452844,-531.18168166,0.00030136,6]
[328103757,1716863452854,-500.0,0.00030136,6]
[328103758,1716863452864,-500.0,0.00030136,6]
[328103759,1716863452874,-500.0,0.00030136,6]
[328103760,1716863452884,-500.0,0.00030136,6]
[328103761,1716863452893,-500.0,0.00030136,6]
[328103762,1716863452903,-500.0,0.00030136,6]
[328103763,1716863452912,-504.26882097,0.00030136,6]
[328103764,1716863452921,-410.72754056,0.00030136,6]
[328103765,1716863452931,-500.0,0.00030136,6]